Cogmind - Beta 15 @@@ ROGUE MODE // 2025.09.12 @ 19:17:59 Player: Petvaria Result: Destroyed by Y-45 Defender with Heavy Assault Rifle Performance ------------- Evolutions (0) 0 Regions Visited (2) 400 Robots Destroyed (18) 90 Value Destroyed (612) 612 Prototype IDs (11) 220 Alien Tech Used (0) 0 Bonus (0) 0 TOTAL SCORE: 1322 Bonus ------- None Cogmind --------- Core Integrity 0/250 Matter 249/300 Energy 125/125 System Corruption 0% Temperature Cool (0) Movement Walking (120) Location -10/Subcaves Parts ------- > --- POWER (1) -------- Light Ion Engine > --- PROPULSION (2) --- Aluminum Leg Aluminum Leg > --- UTILITY (2) ------ Makeshift Light Armor Plating > --- WEAPON (2) ------- Battle Cannon Battle Cannon > --- INVENTORY (5) ---- Light Assault Rifle Battle Rifle Battle Rifle Heavy Battle Rifle Battle Cannon Peak State ------------ > --- POWER ------------ Light Ion Engine > --- PROPULSION ------- Aluminum Leg Aluminum Leg > --- UTILITY ---------- Makeshift Light Armor Plating > --- WEAPON ----------- Battle Cannon Battle Cannon > --- INVENTORY -------- Light Assault Rifle Battle Rifle Battle Rifle Heavy Battle Rifle Battle Cannon [Rating: 12] Favorites ----------- Power Light Ion Engine Engine Light Ion Engine Propulsion Aluminum Leg Treads Light Treads Leg Aluminum Leg Utility Large Storage Unit Storage Large Storage Unit Protection Scrap Shield Weapon Subdweller Machine Gun Energy Gun Medium Laser Ballistic Gun Subdweller Machine Gun Ballistic Cannon Battle Cannon Build | -11 -10 -10 ------- Run | Yrd Mat Sub Slots Evolved . | . . . Power . | . . . Propulsion . | . . . Utility . | . . . Weapon . | . . . Parts Attached 17 | 6 1 10 Power 2 | 1 . 1 Engine 2 | 1 . 1 Core . | . . . Reactor . | . . . Propulsion 4 | 2 . 2 Treads 2 | 2 . . Leg 2 | . . 2 Wheel . | . . . Hover . | . . . Flight . | . . . Utility 4 | 1 1 2 Device . | . . . Storage 2 | 1 1 . Processor . | . . . Hackware . | . . . Protection 2 | . . 2 Artifact . | . . . Weapon 7 | 2 . 5 Energy Gun 2 | 1 . 1 Energy Cannon . | . . . Ballistic Gun 3 | 1 . 2 Ballistic Cannon 2 | . . 2 Launcher . | . . . Special Weapon . | . . . Impact Weapon . | . . . Slashing Weapon . | . . . Piercing Weapon . | . . . Special Melee Weapon . | . . . Unidentified Prototypes . | . . . Parts Lost 5 | . . 5 Power 1 | . . 1 Propulsion 1 | . . 1 Utility 1 | . . 1 Weapon 2 | . . 2 Highest Loss Streak 2 | . . 2 To Critical Strikes . | . . . Average Backups 5 | 3 6 5 Power . | . 1 . Propulsion 1 | 1 3 1 Utility . | . . . Weapon 3 | . 2 4 Tool/Special . | . . . Unused Backups 10 | . 3 7 Power . | . . . Propulsion 4 | . 3 1 Utility . | . . . Weapon 6 | . . 6 Tool/Special . | . . . Average Slot Usage (%) 76 | . 85 75 Engine 10 | . 14 10 Treads 10 | . 28 7 Leg 14 | . . 16 Storage 6 | . 14 5 Protection 5 | . . 6 Energy Gun 5 | . 14 4 Ballistic Gun 12 | . 14 12 Ballistic Cannon 9 | . . 11 Peak Build Rating 12 | 6 7 12 Average Rating 8 | 4 6 8 On Entrance 4 | . 6 6 Naked Turns . | . . . Heaviest Build 31 | 13 28 31 Greatest Support 40 | 40 40 40 Greatest Overweight (x) 1 | . . 1 Average Overweight (x) . | . . . Largest Inventory Capacity 15 | 8 15 15 Average Capacity 9 | 6 10 8 Most Carried 11 | 6 8 11 Average Carried 5 | 3 6 5 Final Capacity 15 | 8 15 5 Final Carried 7 | 6 7 5 Class Distribution -------------------- 100% | Mutant Dominant Class ---------------- Mutant | -10/Materials Mutant | -10/Subcaves Resources | -11 -10 -10 ----------- Run | Yrd Mat Sub Matter Collected 682 | 173 57 452 Remotely . | . . . Salvage Created 621 | . 126 495 Parts 38 | . 10 28 Haulers Intercepted . | . . . Recyclers Shooed . | . . . Parts Field Recycled . | . . . Retrieved Matter . | . . . Parts Self-Destructed 10 | . . 10 Prevented . | . . . Kills | -11 -10 -10 ------- Run | Yrd Mat Sub Combat Hostiles Destroyed 18 | . 5 13 Guns 10 | . 5 5 Cannons 8 | . . 8 Classes Destroyed 4 | . 2 2 Swarmer 3 | . 3 . Grunt 3 | . 2 1 Artisan 1 | . . 1 Subdweller 12 | . . 12 Best Kill Streak 3 | . 3 2 Combat Bots Only 3 | . 3 2 Max Kills in Single Turn 1 | . 1 1 Gunslinging . | . . . Exploded . | . . . Melee . | . . . Uniques/NPCs Destroyed . | . . . Combat | -11 -10 -10 -------- Run | Yrd Mat Sub Hostile Shots Fired 90 | . 16 74 Missed 30 | . 7 23 Hits 60 | . 9 51 Projectile 60 | . 9 51 Critical Strikes 1 | . . 1 Damage Taken 1436 | . 96 1340 Core 259 | . 8 251 Absorbed by Shields . | . . . Core Remaining (%) 100 | 100 . . Volleys Fired 83 | . 11 72 Largest 2 | . 2 2 Hottest 80 | . 70 80 Shots Fired 163 | . 21 142 Gun 107 | . 21 86 Cannon 56 | . . 56 Launcher . | . . . Special . | . . . Kinetic 126 | . 11 115 Thermal 37 | . 10 27 Explosive . | . . . Electromagnetic . | . . . Robot Hit Streak 13 | . 6 13 Robot Miss Streak 2 | . 2 1 Penetration Max . | . . . Secondary Targets 1 | . 1 . Max Gunslinging Chain 1 | . 1 . Shots Hit Robots 88 | . 14 74 Core Hits 31 | . 9 22 Critical Kills 1 | . 1 . Critical Parts Destroyed . | . . . Critical Strikes 3 | . 2 1 Burn 2 | . 1 1 Destroy 1 | . 1 . Melee Attacks . | . . . Impact . | . . . Slashing . | . . . Piercing . | . . . Sneak Attacks . | . . . Combat Hostiles . | . . . Follow-up Attacks . | . . . Damage Inflicted 1268 | . 159 1109 Guns 822 | . 155 667 Cannons 442 | . . 442 Explosions . | . . . Melee . | . . . Ramming 4 | . 4 . Kinetic 988 | . 42 946 Thermal 276 | . 113 163 Explosive . | . . . Electromagnetic . | . . . Impact . | . . . Slashing . | . . . Piercing . | . . . Highest Corruption . | . . . Average Corruption . | . . . Corruption Purged . | . . . Corruption Blocked . | . . . Overload Shots . | . . . Overflow Damage . | . . . Projectiles . | . . . Explosions . | . . . Melee . | . . . Knockbacks 4 | . . 4 Impact . | . . . Kinetic 4 | . . 4 Secondary . | . . . Self-Inflicted Damage . | . . . Shots . | . . . Rammed 1 | . 1 . Targets Rammed 1 | . 1 . Kicked . | . . . Crushed . | . . . Highest Temperature 82 | . 82 20 Average Temperature 31 | . 33 13 Received Heat Transfer 174 | . 18 156 Siege Activations . | . . . Martial Activations . | . . . Shielding Activations . | . . . Robots Disrupted . | . . . Combat Hostiles . | . . . Robots Corrupted . | . . . Combat Hostiles . | . . . Parts Fried . | . . . Impact Corruptions . | . . . Robots Melted . | . . . Combat Hostiles . | . . . Parts Melted . | . . . Heat Transferred 962 | . 407 555 Parts Sabotaged . | . . . Parts Stolen . | . . . Parts Stripped . | . . . Power Chain Reactions . | . . . Alert | -11 -10 -10 ------- Run | Yrd Mat Sub Maximum Alert Level . | . . . Low Security (%) 100 | 100 100 . Level 1 . | . . . Level 2 . | . . . Level 3 . | . . . Level 4 . | . . . Level 5 . | . . . High Security . | . . . Max Security . | . . . Peak Influence 60 | . 60 . Initial . | . . . Average 9 | . 10 . Influence Increases 140 | . 120 20 Destroy 0b10 Robot/C 120 | . 100 20 Destroy Leader 20 | . 20 . Influence Decreases 120 | . 120 . Time Decay 120 | . 120 . Squads Dispatched 2 | . 2 . Investigation 1 | . 1 . Extermination . | . . . Reinforcement 1 | . 1 . Assault . | . . . Garrison . | . . . Intercept . | . . . Searches Triggered . | . . . Construction Impeded . | . . . Haulers Reinforced . | . . . Active Scanning Responses . | . . . Cargo Convoy Interrupts . | . . . Stealth | -11 -10 -10 --------- Run | Yrd Mat Sub Distress Signals 2 | . 2 . Communications Jammed . | . . . Distress Signals . | . . . Times Spotted 28 | . 14 14 Peak Tracking Total 4 | . 4 2 Tactical Retreats . | . . . Traps | -11 -10 -10 ------- Run | Yrd Mat Sub Traps Triggered 6 | . 1 5 Indirectly . | . . . Trap Hack Attempts . | . . . Triggered . | . . . Disarmed . | . . . Reprogrammed . | . . . Reused . | . . . Traps Extracted . | . . . Installed . | . . . Triggered . | . . . Machines | -11 -10 -10 ---------- Run | Yrd Mat Sub Machines Disabled . | . . . Max in Single Turn . | . . . Machines Repaired . | . . . Machines Dismantled . | . . . Machines Sabotaged . | . . . Overloaded Fab Kills . | . . . Hacking | -11 -10 -10 --------- Run | Yrd Mat Sub Machines Accessed 1 | . . 1 Terminals . | . . . Fabricators . | . . . Repair Stations . | . . . Recycling Units . | . . . Scanalyzers . | . . . Garrison Access . | . . . Total Hacks 1 | . . 1 Successful 1 | . . 1 Failed . | . . . Catastrophic . | . . . Database Lockouts . | . . . Manual . | . . . Terminals . | . . . Fabricators . | . . . Repair Stations . | . . . Recycling Units . | . . . Scanalyzers . | . . . Garrison Access . | . . . Terminal Hacks 1 | . . 1 Proto ID Catalog 1 | . . 1 Fabricator Hacks . | . . . Repair Station Hacks . | . . . Recycling Unit Hacks . | . . . Scanalyzer . | . . . Garrison Access Hacks . | . . . Unauthorized Hacks . | . . . Terminals . | . . . Fabricators . | . . . Repair Stations . | . . . Recycling Units . | . . . Scanalyzers . | . . . Garrison Access . | . . . Data Cores Recovered . | . . . Used . | . . . Hacking Detections . | . . . Full Trace Events . | . . . Feedback Events . | . . . Feedback Blocked . | . . . Robot Schematics Acquired . | . . . Robots Built . | . . . Authchips . | . . . Time . | . . . Total Robot Build Rating . | . . . Part Schematics Acquired . | . . . Parts Built . | . . . Authchips . | . . . Time . | . . . Total Part Build Rating . | . . . Parts Repaired . | . . . Time . | . . . Parts Recycled . | . . . Recycled Matter . | . . . Retrieved Matter . | . . . Retrieved Components . | . . . Parts Scanalyzed . | . . . Part Schematics Acquired . | . . . Parts Damaged . | . . . Bothacking | -11 -10 -10 ------------ Run | Yrd Mat Sub Used RIF Installer . | . . . Robots Hacked . | . . . Non-combat . | . . . Combat . | . . . Robot Hacks Applied . | . . . Relay Couplers Released . | . . . Fabnet Peak Effective % . | . . . Robots Rewired . | . . . Allies Hacked . | . . . Hacks Repelled . | . . . Allies | -11 -10 -10 -------- Run | Yrd Mat Sub Total Allies . | . . . Largest Group . | . . . Highest-Rated Group . | . . . Highest-Rated Ally . | . . . Total Orders . | . . . Ally Attacks . | . . . Total Damage . | . . . Kills . | . . . Allies Corrupted . | . . . Allies Melted . | . . . Intel | -11 -10 -10 ------- Run | Yrd Mat Sub Active Infowar (turns) . | . . . Robot Analysis Total . | . . . Derelict Logs Recovered 1 | . . 1 Drone Launches . | . . . Drone Recoveries . | . . . Exploration | -11 -10 -10 ------------- Run | Yrd Mat Sub Turns Passed 4153 | 95 580 3478 Spaces Moved 2042 | 57 246 1739 Core 12 | 12 . . Treads 846 | 45 246 555 Legs 1184 | . . 1184 Wheels . | . . . Hover . | . . . Flight . | . . . Fastest Speed 50 | 50 160 120 Average Speed 173 | 136 160 176 Slowest Speed 240 | 160 160 240 Overloaded Moves . | . . . Propulsion Burnouts . | . . . Robots Hopped . | . . . Potential Cave-ins . | . . . Cave-ins Triggered . | . . . Exploration Rate (%) 47 | 5 54 84 Regions Visited 2 Branch Regions 1 Pre-discovered Areas . | . . . Known Exits Taken . | . . . Unknown Exits Taken 2 | 1 1 . Scrap Searched 9 | . . 9 Spaces Dug . | . . . Terrain Destroyed 1 | . . 1 Melee . | . . . Projectile 1 | . . 1 AOE . | . . . Terrain Rammed . | . . . Walls Destroyed . | . . . Machines Disabled . | . . . Actions | -11 -10 -10 --------- Run | Yrd Mat Sub Total 2485 | 74 415 1996 Wait 305 | . 148 157 Move 2040 | 56 245 1739 Hop . | . . . Pick Up 26 | 12 5 9 Fast Attach 1 | . . 1 Attach 12 | 6 1 5 Detach . | . . . Swap 4 | . . 4 Drop 11 | . 4 7 Fire 83 | . 11 72 Melee . | . . . Ram . | . . . Kick . | . . . Crush 1 | . 1 . Escape Stasis . | . . . Rewire . | . . . Trap . | . . . Miscellaneous 2 | . . 2 Route ------- -11/Scrapyard -10/Materials (discovered 4 exits: [*Mat x2] / [*Min] / *Sub) -10/Subcaves (discovered 1 exit: [*Mat]) History --------- Turn | Location | Event 10 | -11/Scrapyard | Discovered new exit (range 15) 96 | -11/Scrapyard | Entered Materials 189 | -10/Materials | Discovered new exit (range 4) 254 | -10/Materials | Discovered new exit (range 9) 307 | -10/Materials | Build established: Mutant 454 | -10/Materials | Discovered new exit (range 15) 660 | -10/Materials | Discovered new exit (range 7) 676 | -10/Materials | Entered Subcaves 677 | -10/Subcaves | Approached by a straggling Scientist 842 | -10/Subcaves | Discovered new exit (range 12) 1673 | -10/Subcaves | Visited 4L-MR0's lab 1873 | -10/Subcaves | Learned Materials terminal intel 3256 | -10/Subcaves | Shifting Twisted Machinery released Sub. Optics 3383 | -10/Subcaves | Ambushed by Subdwellers from Twisted Machinery 3421 | -10/Subcaves | Core integrity fell below 50% 3630 | -10/Subcaves | A swath of the cavern ceiling suddenly collapsed 3807 | -10/Subcaves | A swath of the cavern ceiling suddenly collapsed 3954 | -10/Subcaves | Core integrity fell below 20% 4154 | -10/Subcaves | Destroyed by Y-45 Defender with Heavy Assault Rifle Last Messages --------------- Searching scrap... Found Battle Rifle. Found 49 Matter. Searching scrap... Found Sub. Laser. Found Battle Rifle. Found 41 Matter. Searching scrap... Found Hvy. Battle Rifle. Found 55 Matter. Acquired Battle Rifle. Triggered Piercing Trap. Spikes shoot up from the floor. Critical hit (Impale). Dropped Med. Laser. Acquired Hvy. Battle Rifle. Acquired 20 matter. Acquired 9 matter. Critical hit (Burn: +37). G-34 Mercenary destroyed. Map ----- +----------------------------------------------------+ | ????????????????????????#"# #### #????? | | ????????????????????????##""# ## #????? | | ?????????????????????????# " ### ##????? | | ?????????????????????????# #### ####?????? | | ???????????????????????### ### ###????????? | | ???????????????????????# ## ##??????????? | | ???????????????????????# ######??????? | | ???????????????????????# ## #??????? | | ???????????????????????## ##??????? | | ????????????????????????##### #??????? | | ????????????????????????????## # ##??????? | | ?????????????????????????????#### ## #?##???? | | ????????????????????????????????## ## ## #???? | | ???????????????????????????###### #### #???? | | ??????????????????????????## # # ##???? | | ??????????????????????????# & % ##????? | | ?????????????????????????## **& ##?????? | | ????????????????????????## # ### &&%#####??????? | | ????????????????????????# ####?##!&#= #????????? | | ???????????????????????## # #????# #????????? | | ???????????????????????# ###????## ##????????? | | ???????????????????????## #??????## #?????????? | | ????????????????????????# #???????## #?????????? | | ????????????????????????# ##???????## =##????????? | | ??????????????????#????## #???????# &* #????????? | | ?????????????????## #;@##???????# #????????? | | ???????????# Y%%% #????????# #????????? | | ???????????????# #????????## ##????????? | | ?????????????# # ##?????????# ##?###????? | | ????????????# # # ???????????# ## #????? | | ??????????? ?? ###??????????## #????? | | ???????????? ???# ??????????????# ##????? | | ?????????????????## ??????????????## ####?????? | | ??????????????????#???????????###?# #????????? | | ??????????????????????????????# ## ##????????? | | ???????????????????????????????# ########???? | | ???????????????????????????????## ##?# #???? | | ????????????????????????????????## #???# #???? | | ???????????????????????????????### ##?## " #???? | | ???????????????????????????????# ### ####???? | | ???????????????????????????????## #"###?????? | | ????????????????????????????????# ##""##????? | | ????????????????????????????????# ####""##???? | | ????????????????????????????????#### ##### # #???? | | ??????????????????????????????????## #"##"##"#???? | | ??????????????????????????????????#" ""#"##""#???? | | ?????????????????????????????????# #""#"##?#"#???? | | ?????????????????????????????????#"##""#######???? | | ?????????????????????????????????##"""#"## ?????? | | ?????????????????????????????????#######"###?????? | +----------------------------------------------------+ Best States ------------- Heat Dissipation 25 Energy Generation 10 Energy Capacity 250 Matter Stores 300 Matter Capacity 300 Sight Range 16 Terrain Scan Density 10 Armor Coverage 800 Evasion (%) 55 Recoil Reduction 2 Item Schematics ----------------- None Robot Schematics ------------------ None Fabricated ------------ Nothing Repaired ---------- Nothing Alien Tech Used ----------------- None Achievements -------------- None Challenges ------------ None Game ------ Seed NodeTerrabombMultitool Manual? 0 Play Time 00:16:31 Cumulative 200.8 hours Start 2025.09.12 @ 19:02:12 End 2025.09.12 @ 19:17:59 Sessions 1 Manual Loads 0 Difficulty Rogue Special Mode None Game No. 173 Rogue 173 Adventurer 0 Explorer 0 Win Type - Total 10 Types 4/0/2/2/1/0/0/0/0/1 Lore% 89 Gallery% 84 Achievement% 67 Wizard Run 0 Options --------- Layout 1 ASCII 0 Keyboard 0 Movement Numpad Keybinds 0 Fullscreen 1 Font 24/Proggy Map View 50x35 Zoom Use 0% Tactical HUD 0 Map Filters NONE Filters NONE Steam 1 RUN: 3c0458d1-e95f-4a29-89eb-dac93aa6e906